fUST/lending_fUST_20240403
["ID","MTS","AMOUNT","RATE_DAILY","PERIOD"]
[321396763,1712127038403,-500.0,0.00038346,15]
[321396764,1712127038412,-500.0,0.00038346,15]
[321396766,1712127038421,-500.0,0.00038346,15]
[321396769,1712127038431,-500.0,0.00038346,15]
[321396771,1712127038440,-500.0,0.00038346,15]
[321396773,1712127038449,-500.0,0.00038346,15]
[321396775,1712127038459,-500.0,0.00038346,15]
[321396776,1712127038468,-500.0,0.00038346,15]
[321396778,1712127038477,-500.0,0.00038346,15]
[321396780,1712127038486,-500.0,0.00038346,15]
[321396782,1712127038495,-500.0,0.00038346,15]
[321396784,1712127038504,-500.0,0.00038346,15]
[321396786,1712127038513,-500.0,0.00038346,15]
[321396788,1712127038522,-500.0,0.00038346,15]
[321396790,1712127038531,-500.0,0.00038346,15]
[321396792,1712127038540,-500.0,0.00038346,15]
[321396794,1712127038549,-500.0,0.00038346,15]
[321396796,1712127038558,-500.0,0.00038346,15]
[321396798,1712127038567,-500.0,0.00038346,15]
[321396800,1712127038576,-500.0,0.00038346,15]
[321396802,1712127038585,-500.0,0.00038346,15]
[321396804,1712127038594,-500.0,0.00038346,15]
[321396806,1712127038604,-500.0,0.00038346,15]
[321396808,1712127038612,-500.0,0.00038346,15]
[321396810,1712127038621,-500.0,0.00038346,15]
[321396812,1712127038630,-500.0,0.00038346,15]
[321396814,1712127038639,-500.0,0.00038346,15]
[321396816,1712127038647,-500.0,0.00038346,15]
[321396817,1712127038656,-500.0,0.00038346,15]
[321396818,1712127038666,-500.0,0.00038346,15]
[321396819,1712127038675,-500.0,0.00038346,15]
[321396820,1712127038684,-500.0,0.00038346,15]
[321396821,1712127038694,-500.0,0.00038346,15]
[321396822,1712127038703,-500.0,0.00038346,15]
[321396823,1712127038712,-500.0,0.00038346,15]
[321396824,1712127038720,-500.0,0.00038346,15]
[321396825,1712127038730,-500.0,0.00038346,15]
[321396826,1712127038739,-500.0,0.00038346,15]
[321396827,1712127038748,-500.0,0.00038346,15]
[321396828,1712127038814,-500.0,0.00038346,15]
[321396829,1712127038823,-342.83303512,0.00038346,15]
[321396830,1712127038832,-500.0,0.00038346,15]
[321396831,1712127038841,-500.0,0.00038346,15]
[321396832,1712127038850,-500.0,0.00038346,15]
[321396833,1712127038860,-256.56534513,0.00038352,2]
[321396834,1712127038869,-213.36966749,0.00038352,4]
[321396835,1712127038879,-1352.70207437,0.00038352,4]
[321396836,1712127038887,-2491.39636379,0.00038352,4]
[321396837,1712127038909,-0.67765406,0.00038352,4]
[321396838,1712127038919,-3221.05433068,0.00038352,4]
[321396839,1712127038929,-2600.58883732,0.00038352,4]
[321396840,1712127038939,-155.00620042,0.00038352,4]
[321396841,1712127038949,-563.96645764,0.00038353,15]
[321396842,1712127038960,-500.0,0.00038353,15]
[321396843,1712127038968,-500.0,0.00038353,15]
[321396844,1712127038978,-192.90637452,0.00038353,15]
[321396845,1712127038987,-500.0,0.00038353,15]
[321396846,1712127038996,-436.66624007,0.00038353,15]
[321396847,1712127039005,-153.21474658,0.00038353,15]
[321396848,1712127039014,-500.0,0.00038353,15]
[321396849,1712127039025,-221.34006621,0.00038353,15]
[321396924,1712127250582,1691.77526,0.00039382,30]
[321396941,1712127746171,10000.0,0.00027,2]
[321396942,1712127754447,10000.0,0.00025,10]
[321396943,1712127762239,10000.0,0.00027,2]
[321396944,1712127769223,5000.0,0.00027,2]
[321396947,1712127793168,5000.0,0.000275,3]
[321397024,1712128146115,-520.87496,0.00026998,2]
[321397025,1712128146137,-160.0,0.00026999,2]
[321397026,1712128146158,-5000.0,0.00027,2]
[321397027,1712128146178,-155.01395126,0.00027,2]
[321397028,1712128146200,-2023.69603928,0.000275,2]
[321397128,1712128238592,-250.0,0.000275,2]
[321397170,1712128240656,-5753.42599359,0.000275,2]
[321397223,1712128246649,-0.20796713,0.000275,2]
[321397225,1712128246660,-239.58143426,0.00028764,2]
[321397226,1712128246669,-150.95471359,0.00032505,30]
[321397227,1712128246680,-150.95471359,0.00033168,7]
[321397228,1712128246689,-75.4237646,0.00033333,3]
[321397233,1712128816554,164.66079012,0.000299,44]
[321397248,1712128909144,492.277518,0.00030137,120]
[321397280,1712129165361,9024.75829009,0.00039385,30]
[321397281,1712129201332,-166.67616375,0.0003323,6]
[321397282,1712129213637,-500.0,0.00033328,7]
[321397283,1712129213686,-500.0,0.00033328,7]
[321397284,1712129213738,-500.0,0.00033328,7]
[321397285,1712129213786,-500.0,0.00033328,7]
[321397286,1712129213828,-500.0,0.00033328,7]
[321397287,1712129213869,-500.0,0.00033328,7]
[321397288,1712129213914,-384.28330351,0.00033328,7]
[321397289,1712129213952,-500.0,0.00033328,7]
[321397290,1712129213989,-500.0,0.00033328,7]
[321397291,1712129214027,-500.0,0.00033328,7]
[321397292,1712129214065,-500.0,0.00033328,7]
[321397293,1712129214101,-500.0,0.00033328,7]
[321397294,1712129214139,-500.0,0.00033328,7]
[321397295,1712129214176,-500.0,0.00033328,7]
[321397296,1712129214282,-500.0,0.00033328,7]
[321397297,1712129214329,-500.0,0.00033328,7]
[321397298,1712129214352,-500.0,0.00033328,7]
[321397299,1712129214375,-500.0,0.00033328,7]
[321397300,1712129214398,-500.0,0.00033328,7]
[321397301,1712129214426,-500.0,0.00033328,7]
[321397302,1712129214449,-500.0,0.00033328,7]
[321397303,1712129214472,-500.0,0.00033328,7]
[321397304,1712129214495,-500.0,0.00033328,7]
[321397305,1712129214519,-500.0,0.00033328,7]
[321397306,1712129214541,-500.0,0.00033328,7]
[321397307,1712129214565,-500.0,0.00033328,7]
[321397308,1712129214587,-500.0,0.00033328,7]
[321397309,1712129214610,-500.0,0.00033328,7]
[321397310,1712129214632,-500.0,0.00033328,7]
[321397317,1712129282471,-150.0,0.00028715,2]
[321397318,1712129421219,369.208138,0.00030137,120]
[321397414,1712129438759,-158.22839683,0.000277,2]
[321397416,1712129438768,-1674.17930316,0.000277,2]
[321397526,1712129443736,-1570.96235536,0.00027699,2]
[321397527,1712129443745,-1558.98998664,0.000277,2]
[321397528,1712129443754,-1614.32375429,0.00027701,2]
[321397529,1712129443763,-520.87496,0.00027701,2]
[321397530,1712129443772,-2117.72649425,0.00027702,2]
[321397531,1712129443782,-14438.44003958,0.00027702,2]
[321397532,1712129443796,-19933.21938378,0.00027702,2]
[321397533,1712129443874,-0.03225869,0.00027702,2]
[321397545,1712129451186,5000.0,0.000275,3]
[321397546,1712129457834,1270.13693355,0.00025616,10]
[321397547,1712129457858,12697.82392518,0.00025616,10]
[321397548,1712129526160,906.85149142,0.00025616,5]
[321397549,1712129547474,906.85149142,0.00025616,5]
[321397550,1712129559464,1740.59787221,0.00025616,5]
[321397551,1712129579486,906.85149142,0.00025616,5]
[321397552,1712129601480,906.85149142,0.00025616,5]
[321397553,1712129617483,906.85149142,0.00025616,5]
[321397555,1712129639466,906.85149142,0.00025616,5]
[321397556,1712129646845,5000.0,0.00027,3]
[321397558,1712129655220,120.46925409,0.00027,3]
[321397559,1712129657486,906.85149142,0.00025616,5]
[321397560,1712129675491,906.85149142,0.00025616,5]
[321397561,1712129695481,906.85149142,0.00025616,5]
[321397562,1712129713540,906.85149142,0.00025616,5]
[321397563,1712129729478,906.85149142,0.00025616,5]
[321397566,1712129751511,906.85149142,0.00025616,5]
[321397567,1712129767567,509.25134307,0.00025616,5]
[321397569,1712129843638,5000.0,0.000265,3]
[321397570,1712129852779,4353.43185139,0.000265,3]
[321397572,1712129899708,276.906103,0.00030137,120]
[321397577,1712130215849,580.03635986,0.0002647,5]
[321397583,1712130435851,207.679577,0.00030137,120]
[321397739,1712130640085,-520.18596634,0.00024396,2]
[321397740,1712130640101,-2089.81211522,0.00024397,2]
[321397741,1712130640114,-154.98450155,0.00024397,2]
[321397742,1712130640130,-3857.31741689,0.00024397,2]
[321397756,1712130642948,-3519.58273564,0.00024396,2]
[321397757,1712130642957,-1131.63334238,0.00024397,2]
[321397762,1712130643178,-1908.68397476,0.00024397,2]
[321397764,1712130643187,-1614.32375429,0.00024398,2]
[321397766,1712130643197,-520.87496,0.00024398,2]
[321397768,1712130643206,-150.0,0.000244,2]
[321397770,1712130643215,-300.0,0.00025587,2]
[321397771,1712130643225,-300.0,0.00025587,2]
[321397772,1712130643235,-1570.96235536,0.00027,2]
[321397773,1712130643244,-1306.37212075,0.00027192,2]
[321397788,1712130852605,2855.81453617,0.00039409,30]
[321397789,1712130869091,400.0,0.00012,7]
[321397791,1712130873784,2290.53751554,0.000205,5]
[321397792,1712130875413,535.39328572,0.00021,7]
[321397793,1712130947115,207.679577,0.00030137,120]
[321397796,1712131497500,207.679577,0.00030137,120]
[321397882,1712131832537,-3519.58273564,0.00027661,2]
[321397884,1712131832546,-1614.32375429,0.00027662,2]
[321397886,1712131832556,-520.87496,0.00027663,2]
[321397888,1712131832565,-698.3193909,0.00027671,2]
[321397889,1712131832575,-155.40784577,0.000277,2]
[321397891,1712131832584,-155.87338543,0.00027701,2]
[321397892,1712131832594,-267.58013799,0.00027701,2]
[321397893,1712131832603,-259.798843,0.00027745,2]
[321397895,1712131832613,-11423.3126851,0.00027801,2]
[321397896,1712131832622,-187.88657,0.00027901,2]
[321397898,1712131832631,-164.59432849,0.00028476,2]
[321397899,1712131832640,-154.9690062,0.00028616,2]
[321397901,1712131832649,-264.57693695,0.00028764,2]
[321397903,1712131832659,-575.99694378,0.0002977,2]
[321397905,1712131832668,-15442.24639425,0.0002978,10]
[321397906,1712131832678,-168.74759971,0.000299,2]
[321397907,1712131832688,-377.76254095,0.0003,10]
[321397908,1712131832697,-167.0,0.0003,2]
[321397909,1712131832707,-168.74759969,0.00032398,2]
[321397910,1712131832717,-150.96980604,0.0003273,30]
[321397911,1712131832726,-288.05529332,0.00032777,2]
[321397912,1712131832736,-1004.38654765,0.00032874,2]
[321397913,1712131832746,-1744.57504423,0.00032875,2]
[321397914,1712131832755,-474.3157665,0.00032875,4]
[321397915,1712131832765,-155.32632587,0.00032875,4]
[321397916,1712131832774,-199.23370242,0.00032875,4]
[321397917,1712131832784,-500.0,0.00032876,2]
[321397918,1712131832793,-499.95470998,0.00032876,2]
[321397919,1712131832803,-155.75151319,0.00032876,2]
[321397920,1712131832812,-500.0,0.00032876,2]
[321397921,1712131832823,-500.0,0.00032876,2]
[321397922,1712131832834,-500.0,0.00032876,2]
[321397923,1712131832843,-500.0,0.00032876,2]
[321397924,1712131832854,-302.86048903,0.00032876,2]
[321397925,1712131832863,-500.0,0.00032876,2]
[321397926,1712131832873,-426.3251339,0.00032876,2]
[321397927,1712131832882,-173.959919,0.00032876,2]
[321397928,1712131832893,-161.384544,0.00032876,2]
[321397929,1712131832903,-151.0,0.00032876,2]
[321397930,1712131832913,-151.0,0.00032876,2]
[321397931,1712131832923,-210.077024,0.00032876,2]
[321397932,1712131832932,-156.20811,0.00032876,2]
[321397933,1712131832942,-151.0,0.00032876,2]
[321397934,1712131832952,-151.0,0.00032876,2]
[321397935,1712131832962,-151.0,0.00032876,2]
[321397936,1712131832971,-151.0,0.00032876,2]
[321397937,1712131832981,-152.024796,0.00032876,2]
[321397938,1712131832990,-151.0,0.00032876,2]
[321397939,1712131832999,-151.0,0.00032876,2]
[321397940,1712131833008,-151.0,0.00032876,2]
[321397941,1712131833018,-151.0,0.00032876,2]
[321397942,1712131833028,-222.418451,0.00032876,2]
[321397943,1712131833037,-514.845441,0.00032876,2]
[321397944,1712131833047,-514.845441,0.00032876,2]
[321397945,1712131833056,-151.0,0.00032876,2]
[321397946,1712131833065,-151.0,0.00032876,2]
[321397947,1712131833076,-500.0,0.00032877,7]
[321397948,1712131833086,-500.0,0.00032877,7]
[321397949,1712131833095,-500.0,0.00032877,7]
[321397950,1712131833104,-500.0,0.00032877,7]
[321397951,1712131833113,-500.0,0.00032877,7]
[321397952,1712131833122,-500.0,0.00032877,7]
[321397953,1712131833131,-500.0,0.00032877,7]
[321397954,1712131833140,-500.0,0.00032877,7]
[321397955,1712131833150,-500.0,0.00032877,7]
[321397956,1712131833162,-500.0,0.00032877,7]
[321397957,1712131833171,-500.0,0.00032877,7]
[321397958,1712131833181,-500.0,0.00032877,7]
[321397959,1712131833190,-500.0,0.00032877,7]
[321397960,1712131833200,-278.04843443,0.00032877,7]
[321397961,1712131833211,-500.0,0.00032877,7]
[321397962,1712131833221,-500.0,0.00032877,7]
[321397963,1712131833230,-500.0,0.00032877,7]
[321397964,1712131833240,-500.0,0.00032877,7]
[321397965,1712131833250,-500.0,0.00032877,7]
[321397966,1712131833259,-500.0,0.00032877,7]
[321397967,1712131833268,-500.0,0.00032877,7]
[321397968,1712131833277,-500.0,0.00032877,7]
[321397969,1712131833286,-500.0,0.00032877,7]
[321397970,1712131833296,-500.0,0.00032877,7]
[321397971,1712131833306,-500.0,0.00032877,7]
[321397972,1712131833315,-500.0,0.00032877,7]
[321397973,1712131833327,-500.0,0.00032877,7]
[321397974,1712131833336,-500.0,0.00032877,7]
[321397975,1712131833346,-500.0,0.00032877,7]
[321397976,1712131833356,-500.0,0.00032877,7]
[321397977,1712131833365,-500.0,0.00032877,7]
[321397978,1712131833374,-500.0,0.00032877,7]
[321397979,1712131833436,-500.0,0.00032877,7]
[321397980,1712131833452,-500.0,0.00032877,7]
[321397981,1712131833461,-500.0,0.00032877,7]
[321397982,1712131833470,-500.0,0.00032877,7]
[321397983,1712131833480,-500.0,0.00032877,7]
[321397984,1712131833489,-500.0,0.00032877,7]
[321397985,1712131833498,-500.0,0.00032877,7]
[321397986,1712131833507,-500.0,0.00032877,7]
[321397987,1712131833517,-500.0,0.00032877,7]
[321397988,1712131833526,-500.0,0.00032877,7]
[321397989,1712131833536,-500.0,0.00032877,7]
[321397990,1712131833545,-9.85140686,0.00032877,7]
[321398005,1712131838087,-490.14859314,0.00032877,7]
[321398006,1712131838097,-103.77645691,0.00032877,7]
[321398007,1712131838108,-396.22354309,0.00032877,7]
[321398008,1712131838118,-500.0,0.00032877,7]
[321398009,1712131838127,-139.46574013,0.00032877,7]
[321398041,1712131840313,-460.53425987,0.00032877,7]
[321398042,1712131840322,-500.0,0.00032877,7]
[321398043,1712131840332,-500.0,0.00032877,7]
[321398044,1712131840341,-47.83507598,0.00032877,7]
[321398079,1712131843435,-452.16492402,0.00032877,7]
[321398080,1712131843445,-500.0,0.00032877,7]
[321398081,1712131843454,-500.0,0.00032877,7]
[321398082,1712131843463,-500.0,0.00032877,7]
[321398083,1712131843473,-500.0,0.00032877,7]
[321398084,1712131843482,-500.0,0.00032877,7]
[321398085,1712131843492,-500.0,0.00032877,7]
[321398086,1712131843501,-500.0,0.00032877,7]
[321398087,1712131843510,-151.0,0.00032877,2]
[321398088,1712131843520,-151.0,0.00032877,2]
[321398089,1712131843529,-151.0,0.00032877,2]
[321398090,1712131843539,-151.0,0.00032877,2]
[321398091,1712131843548,-151.0,0.00032877,2]
[321398092,1712131843558,-151.0,0.00032877,2]
[321398093,1712131843569,-151.0,0.00032877,2]
[321398094,1712131843578,-151.0,0.00032877,2]
[321398095,1712131843591,-151.0,0.00032877,2]
[321398096,1712131843601,-151.0,0.00032877,2]
[321398097,1712131843668,-189.016022,0.00032877,2]
[321398098,1712131843679,-151.0,0.00032877,2]
[321398099,1712131843688,-151.0,0.00032877,2]
[321398100,1712131843698,-151.0,0.00032877,2]
[321398101,1712131843707,-151.0,0.00032877,2]
[321398102,1712131843716,-151.0,0.00032877,2]
[321398103,1712131843726,-151.0,0.00032877,2]
[321398104,1712131843735,-151.0,0.00032877,2]
[321398105,1712131843744,-151.0,0.00032877,2]
[321398106,1712131843754,-151.0,0.00032877,2]
[321398107,1712131843764,-151.0,0.00032877,2]
[321398108,1712131843774,-151.0,0.00032877,2]
[321398109,1712131843785,-151.0,0.00032877,2]
[321398110,1712131843794,-187.802958,0.00032877,2]
[321398111,1712131843802,-151.0,0.00032877,2]
[321398112,1712131843812,-151.0,0.00032877,2]
[321398113,1712131843821,-151.0,0.00032877,2]
[321398114,1712131843832,-151.0,0.00032877,2]
[321398115,1712131843842,-151.0,0.00032877,2]
[321398116,1712131843851,-151.0,0.00032877,2]
[321398117,1712131843860,-151.0,0.00032877,2]
[321398118,1712131843869,-151.0,0.00032877,2]
[321398119,1712131843878,-151.0,0.00032877,2]
[321398120,1712131843887,-193.555255,0.00032877,2]
[321398121,1712131843896,-151.0,0.00032877,2]
[321398122,1712131843905,-151.0,0.00032877,2]
[321398123,1712131843915,-151.0,0.00032877,2]
[321398124,1712131843924,-151.0,0.00032877,2]
[321398125,1712131843934,-151.0,0.00032877,2]
[321398126,1712131843943,-151.0,0.00032877,2]
[321398127,1712131843953,-151.0,0.00032877,2]
[321398128,1712131843962,-151.0,0.00032877,2]
[321398129,1712131843971,-151.0,0.00032877,2]
[321398130,1712131843981,-151.0,0.00032877,2]
[321398131,1712131843990,-151.0,0.00032877,2]
[321398132,1712131843999,-151.0,0.00032877,2]
[321398133,1712131844009,-151.0,0.00032877,2]
[321398134,1712131844019,-151.0,0.00032877,2]
[321398135,1712131844028,-151.0,0.00032877,2]
[321398136,1712131844038,-255.602588,0.00032877,2]
[321398137,1712131844047,-514.845441,0.00032877,2]
[321398138,1712131844056,-514.845441,0.00032877,2]
[321398139,1712131844065,-514.845441,0.00032877,2]
[321398140,1712131844074,-514.845441,0.00032877,2]
[321398141,1712131844085,-502.87408129,0.00032877,2]
[321398142,1712131844128,-11.97135971,0.00032877,2]
[321398143,1712131844138,-514.845441,0.00032877,2]
[321398144,1712131844147,-514.845441,0.00032877,2]
[321398145,1712131844157,-514.845441,0.00032877,2]
[321398146,1712131844171,-514.845441,0.00032877,2]
[321398147,1712131844180,-331.18382188,0.00032877,2]
[321398148,1712131844199,-183.66161912,0.00032877,2]
[321398149,1712131844209,-514.845441,0.00032877,2]
[321398150,1712131844218,-514.845441,0.00032877,2]
[321398151,1712131844227,-514.845441,0.00032877,2]
[321398152,1712131844237,-485.20205788,0.00032877,2]
[321398153,1712131844250,-29.64338312,0.00032877,2]
[321398154,1712131844259,-514.845441,0.00032877,2]
[321398155,1712131844269,-514.845441,0.00032877,2]
[321398156,1712131844278,-514.845441,0.00032877,2]
[321398157,1712131844287,-514.845447,0.00032877,2]
[321398158,1712131844296,-151.0,0.00032877,2]
[321398159,1712131844305,-146.77484688,0.00032877,2]
[321398160,1712131844316,-4.22515312,0.00032877,2]
[321398161,1712131844325,-151.0,0.00032877,2]
[321398162,1712131844337,-186.555102,0.00032877,2]
[321398163,1712131844346,-2175.13274488,0.00033333,3]
[321398242,1712133038301,-1996.0872823,0.00032368,2]
[321398296,1712133043354,-114.61069995,0.00032368,2]
[321398298,1712133043364,-699.832,0.00032369,4]
[321398300,1712133043373,-207.679577,0.0003237,120]
[321398301,1712133043383,-2845.31390782,0.00032847,4]
[321398302,1712133043393,-5010.60808625,0.00032848,4]
[321398303,1712133043403,-1188.95573355,0.00032853,4]
[321398308,1712133047164,-5946.79350718,0.00032853,4]
[321398309,1712133047174,-780.60836898,0.00032876,4]
[321398310,1712133047183,-500.0,0.00033332,7]
[321398311,1712133047192,-500.0,0.00033332,7]
[321398312,1712133047201,-500.0,0.00033332,7]
[321398313,1712133047210,-500.0,0.00033332,7]
[321398314,1712133047219,-500.0,0.00033332,7]
[321398315,1712133047227,-500.0,0.00033332,7]
[321398316,1712133047236,-237.80484344,0.00033332,7]
[321398317,1712133047245,-500.0,0.00033332,7]
[321398318,1712133047254,-14578.15132273,0.00033333,3]
[321398319,1712133047336,-716.67241162,0.00033333,4]
[321398320,1712133047347,-211.46759874,0.00033333,4]
[321398321,1712133047357,-168.74759969,0.00033585,2]
[321398322,1712133047366,-3014.13376114,0.0003395,4]
[321398323,1712133047375,-1000.0,0.00034,2]
[321398324,1712133047384,-621.77317238,0.00034124,2]
[321398325,1712133047393,-192.0368622,0.00034896,2]
[321398326,1712133047402,-646.66347898,0.000349,120]
[321398327,1712133047412,-346.40850562,0.000349,112]
[321398328,1712133047421,-1500.0,0.000349,2]
[321398329,1712133047430,-193.74433627,0.00034996,4]
[321398330,1712133047440,-362.30136053,0.00034996,4]
[321398331,1712133047449,-157.70539232,0.00034996,4]
[321398332,1712133047458,-498.33790349,0.00034996,2]
[321398333,1712133047468,-992.64388479,0.00034996,4]
[321398334,1712133047478,-298.45018977,0.00034996,120]
[321398335,1712133047487,-4551.51160063,0.00034996,4]
[321398336,1712133047496,-254.0345773,0.00034996,4]
[321398337,1712133047507,-203.54526099,0.00034996,4]
[321398338,1712133047516,-388.19145309,0.00034996,4]
[321398339,1712133047529,-2805.25532919,0.00034996,120]
[321398340,1712133047538,-249.72324933,0.00034996,4]
[321398341,1712133047548,-161.08119418,0.00034997,10]
[321398342,1712133047557,-1005.03982949,0.00034997,4]
[321398343,1712133047566,-214.26630428,0.00034997,7]
[321398344,1712133047575,-500.0,0.00034997,7]
[321398345,1712133047585,-227.89754017,0.00034997,7]
[321398346,1712133047594,-390.85814671,0.00034997,7]
[321398347,1712133047604,-213.22152545,0.00034997,7]
[321398348,1712133047613,-61353.88981167,0.00034998,4]
[321398349,1712133047622,-893.91,0.00034999,2]
[321398350,1712133047631,-893.91,0.00034999,2]
[321398351,1712133047641,-893.91,0.00034999,2]
[321398352,1712133047651,-893.91,0.00034999,2]
[321398353,1712133047661,-24151.68487086,0.00035,2]
[321398354,1712133047671,-315.95281655,0.00035,4]
[321398355,1712133047680,-320364.74550904,0.00035,120]
[321398356,1712133047689,-192.0368622,0.00035105,2]
[321398357,1712133047699,-192.0368622,0.00035314,2]
[321398358,1712133047708,-151.00604024,0.00035414,7]
[321398359,1712133047717,-3458.3428,0.00036012,30]
[321398360,1712133047726,-151.00604024,0.00036136,4]
[321398361,1712133047735,-250.77446087,0.0003644,2]
[321398362,1712133047745,-151.00604024,0.00036874,2]
[321398363,1712133047756,-507.25335189,0.00037,2]
[321398364,1712133047766,-500.0,0.000375,2]
[321398365,1712133047775,-21095.16957383,0.0003755,5]
[321398366,1712133047784,-1017.28863849,0.000379,115]
[321398367,1712133047793,-6000.0,0.000379,120]
[321398368,1712133047802,-19266.5717,0.00038012,30]
[321398369,1712133047812,-200.0,0.00038017,120]
[321398370,1712133047821,-200.0,0.00038019,120]
[321398371,1712133047831,-200.0,0.0003823,120]
[321398372,1712133047842,-153.0,0.00038233,2]
[321398373,1712133047852,-153.0,0.00038233,2]
[321398374,1712133047861,-602.65241302,0.00038352,4]
[321398375,1712133047870,-5005.90834489,0.00038352,4]
[321398376,1712133047880,-155.47218906,0.00038352,4]
[321398377,1712133047889,-155.54585126,0.00038352,4]
[321398378,1712133047898,-2209.95258598,0.00038352,4]
[321398379,1712133047908,-2800.51094822,0.00038352,4]
[321398380,1712133047916,-211.82568144,0.00038352,4]
[321398381,1712133047926,-284.63310773,0.00038352,4]
[321398382,1712133047935,-2000.75240922,0.00038352,4]
[321398383,1712133047945,-208.80606836,0.00038352,4]
[321398384,1712133047954,-595.1551022,0.00038352,2]
[321398385,1712133047963,-463.84548298,0.00038352,4]
[321398386,1712133047972,-13079.17133651,0.00038353,120]
[321398387,1712133047982,-155.5002918,0.00038354,4]
[321398388,1712133047991,-308.98702801,0.00038354,4]
[321398389,1712133048001,-155.60444705,0.00038354,4]
[321398390,1712133048010,-188.27078779,0.00038354,4]
[321398391,1712133048020,-240.40567466,0.00038355,4]
[321398392,1712133048029,-155.29579029,0.00038355,4]
[321398393,1712133048040,-166.65314643,0.00038355,4]
[321398394,1712133048049,-155.24170349,0.00038355,4]
[321398395,1712133048059,-627.46634023,0.00038356,2]
[321398396,1712133048068,-52344.8018011,0.00038356,120]
[321398397,1712133048077,-884.0,0.000389,2]
[321398398,1712133048087,-200.0,0.00038908,120]
[321398399,1712133048096,-391.17082186,0.00039,30]
[321398400,1712133048105,-2406.0,0.00039,10]
[321398401,1712133048114,-926.86095111,0.00039,4]
[321398402,1712133048123,-1007.0,0.00039,2]
[321398403,1712133048133,-161.25937244,0.00039019,7]
[321398404,1712133048142,-150.93955783,0.0003904,2]
[321398405,1712133048151,-4338.51736606,0.00039041,30]
[321398406,1712133048160,-161.25937244,0.00039053,7]
[321398407,1712133048170,-200.0,0.00039054,120]
[321398408,1712133048179,-161.84033535,0.00039081,7]
[321398409,1712133048188,-161.84033535,0.000391,7]
[321398410,1712133048197,-161.25937244,0.00039334,7]
[321398411,1712133048206,-346.0,0.00039385,30]
[321398412,1712133048215,-1000.0,0.00039394,30]
[321398413,1712133048224,-1001.0,0.00039394,30]
[321398414,1712133048233,-674.0,0.00039394,30]
[321398415,1712133048242,-10000.0,0.00039409,30]
[321398416,1712133048252,-10000.0,0.00039409,15]
[321398417,1712133048263,-19244.21169052,0.000395,7]
[321398418,1712133048274,-300.0,0.000395,20]
[321398419,1712133048284,-200.0,0.000396,120]
[321398420,1712133048293,-3514.79022657,0.00039652,2]
[321398421,1712133048302,-592.39548237,0.00039652,2]
[321398422,1712133048311,-1023.59118016,0.00039652,2]
[321398423,1712133048321,-3540.81164575,0.00039652,2]
[321398424,1712133048330,-2857.44107765,0.00039652,3]
[321398425,1712133048339,-5351.9,0.00039652,2]
[321398426,1712133048349,-683.54973674,0.0003969,5]
[321398427,1712133048359,-156.09538602,0.0003969,2]
[321398428,1712133048368,-157.83,0.00039696,35]
[321398429,1712133048377,-2083.0,0.00039696,35]
[321398430,1712133048386,-198.0,0.00039696,35]
[321398431,1712133048396,-153.97,0.000397,2]
[321398432,1712133048406,-2083.0,0.00039706,35]
[321398433,1712133048415,-198.0,0.00039706,35]
[321398434,1712133048425,-1357.80588892,0.00039707,29]
[321398435,1712133048435,-150.5,0.0003971,35]
[321398436,1712133048444,-2083.0,0.00039716,35]
[321398437,1712133048454,-198.0,0.00039716,35]
[321398438,1712133048463,-150.5,0.0003972,35]